Cogmind - Beta 14 @@@ ROGUE MODE // 2024.10.27 @ 11:17:21 Player: Ae Result: Destroyed by 1D-YW4(R) with Subdweller Machine Gun Performance ------------- Evolutions (0) 0 Regions Visited (3) 600 Robots Destroyed (18) 90 Value Destroyed (280) 280 Prototype IDs (1) 20 Alien Tech Used (0) 0 Bonus (162) 162 TOTAL SCORE: 1152 Bonus ------- Follower Combat Kills 177 Friendly Fire -15 Cogmind --------- Core Integrity 0/250 Matter 206/300 Energy 100/100 System Corruption 0% Temperature Cool (0) Movement Treading (320) Ox2 Location -10/Subcaves Parts ------- > --- POWER (1) -------- (None) > --- PROPULSION (2) --- Light Treads > --- UTILITY (2) ------ High-capacity Storage Unit Seismic Detector > --- WEAPON (2) ------- Assault Rifle Assault Rifle > --- INVENTORY (20) --- Cargo Legs Airjet Cesium-ion Thruster Heat Sink High-capacity Matter Pod (200) Advanced Weight Redist. System Advanced Visual Processing Unit Experimental Sensor Array Seismic Detector Target Analyzer Actuator Array Reaction Control System Hacking Suite Grenade Launcher Grenade Launcher Rocket Launcher Mining Laser Peak State ------------ > --- POWER ------------ Light Ion Engine > --- PROPULSION ------- Light Treads Light Treads > --- UTILITY ---------- High-capacity Storage Unit Experimental Sensor Array > --- WEAPON ----------- EM Pulse Gun EM Pulse Gun > --- INVENTORY -------- Light Ion Engine Wheel Wheel High-capacity Matter Pod Seismic Detector Seismic Detector Hacking Suite Assault Rifle Assault Rifle Grenade Launcher Grenade Launcher Rocket Launcher Mining Laser [Rating: 16] Favorites ----------- Power Light Ion Engine Engine Light Ion Engine Propulsion Light Treads Treads Light Treads Leg Aluminum Leg Utility High-capacity Storage Unit Device Seismic Detector Storage High-capacity Storage Unit Weapon EM Pulse Gun Energy Gun EM Pulse Gun Ballistic Gun Assault Rifle Build | -11 -10 -10 -10 ------- Run | Yrd Mat Min Sub Slots Evolved . | . . . . Power . | . . . . Propulsion . | . . . . Utility . | . . . . Weapon . | . . . . Parts Attached 17 | 7 6 2 2 Power 1 | 1 . . . Engine 1 | 1 . . . Core . | . . . . Reactor . | . . . . Propulsion 4 | 2 2 . . Treads 2 | . 2 . . Leg 2 | 2 . . . Wheel . | . . . . Hover . | . . . . Flight . | . . . . Utility 6 | 2 2 2 . Device 3 | 1 . 2 . Storage 3 | 1 2 . . Processor . | . . . . Hackware . | . . . . Protection . | . . . . Artifact . | . . . . Weapon 6 | 2 2 . 2 Energy Gun 2 | . 2 . . Energy Cannon . | . . . . Ballistic Gun 4 | 2 . . 2 Ballistic Cannon . | . . . . Launcher . | . . . . Special Weapon . | . . . . Impact Weapon . | . . . . Slashing Weapon . | . . . . Piercing Weapon . | . . . . Special Melee Weapon . | . . . . Unidentified Prototypes 1 | . . 1 . Parts Lost 4 | . . . 4 Power 1 | . . . 1 Propulsion 1 | . . . 1 Utility . | . . . . Weapon 2 | . . . 2 Highest Loss Streak 3 | . . . 3 To Critical Strikes . | . . . . Average Slot Usage (%) 94 | . 95 94 94 Engine 13 | . 14 14 13 Treads 26 | . 20 28 24 Leg 1 | . 7 . . Device 9 | . 9 8 14 Storage 14 | . 14 14 14 Energy Gun 26 | . 23 28 20 Ballistic Gun 1 | . 4 . 6 Peak Build Rating 16 | 7 8 16 11 Average Rating 8 | 5 7 8 10 On Entrance 6 | . 7 7 11 Naked Turns . | . . . . Heaviest Build 48 | 12 48 48 48 Greatest Support 40 | 20 40 40 40 Greatest Overweight (x) 1 | 1 1 1 1 Average Overweight (x) . | . . 1 1 Largest Inventory Capacity 20 | 8 20 20 20 Average Capacity 18 | 7 13 20 20 Most Carried 20 | 8 11 20 20 Average Carried 13 | 5 9 13 19 Final Capacity 20 | 8 20 20 20 Final Carried 20 | 8 11 20 18 Class Distribution -------------------- 100% | Mutant Dominant Class ---------------- Mutant | -10/Materials Mutant | -10/Mines Mutant | -10/Subcaves Resources | -11 -10 -10 -10 ----------- Run | Yrd Mat Min Sub Matter Collected 425 | 312 83 30 . Remotely . | . . . . Salvage Created 522 | 142 305 75 . Parts 46 | 16 26 4 . Haulers Intercepted 1 | . 1 . . Recyclers Shooed . | . . . . Parts Field Recycled . | . . . . Retrieved Matter . | . . . . Parts Self-Destructed . | . . . . Prevented . | . . . . Kills | -11 -10 -10 -10 ------- Run | Yrd Mat Min Sub Combat Hostiles Destroyed 9 | . 6 3 . Guns 8 | . 5 3 . Classes Destroyed 7 | 2 5 . . Tunneler 4 | 4 . . . Hauler 1 | . 1 . . Recycler 1 | 1 . . . Operator 2 | . 2 . . Watcher 1 | . 1 . . Swarmer 5 | . 3 2 . Grunt 4 | . 3 1 . Best Kill Streak 5 | 5 5 2 . Combat Bots Only 4 | . 4 2 . Max Kills in Single Turn 1 | 1 1 1 . Gunslinging . | . . . . Exploded . | . . . . Melee . | . . . . Uniques/NPCs Destroyed . | . . . . Combat | -11 -10 -10 -10 -------- Run | Yrd Mat Min Sub Hostile Shots Fired 96 | . 49 11 36 Missed 31 | . 20 3 8 Damage Taken 918 | . 246 72 600 Core 260 | . 39 26 195 Absorbed by Shields . | . . . . Core Remaining (%) 100 | 100 . . . Volleys Fired 68 | 11 32 3 22 Largest 2 | 2 2 2 2 Hottest 80 | 40 80 80 80 Shots Fired 130 | 22 64 6 38 Gun 130 | 22 64 6 38 Cannon . | . . . . Launcher . | . . . . Special . | . . . . Kinetic 61 | 22 11 . 28 Thermal . | . . . . Explosive . | . . . . Electromagnetic 69 | . 53 6 10 Robot Hit Streak 15 | 4 7 2 15 Robot Miss Streak 6 | 1 6 1 2 Penetration Max . | . . . . Secondary Targets 1 | . 1 . . Max Gunslinging Chain 1 | . 1 . . Shots Hit Robots 79 | 14 28 3 34 Core Hits 23 | 7 13 3 . Critical Kills . | . . . . Critical Parts Destroyed . | . . . . Critical Strikes 1 | . 1 . . Corrupt 1 | . 1 . . Melee Attacks . | . . . . Impact . | . . . . Slashing . | . . . . Piercing . | . . . . Sneak Attacks . | . . . . Combat Hostiles . | . . . . Follow-up Attacks . | . . . . Damage Inflicted 720 | 151 497 37 35 Guns 636 | 151 413 37 35 Cannons . | . . . . Explosions 84 | . 84 . . Melee . | . . . . Ramming . | . . . . Kinetic 208 | 151 57 . . Thermal 84 | . 84 . . Explosive . | . . . . Electromagnetic 428 | . 356 37 35 Impact . | . . . . Slashing . | . . . . Piercing . | . . . . Highest Corruption . | . . . . Average Corruption . | . . . . Corruption Purged . | . . . . Corruption Blocked . | . . . . Overload Shots . | . . . . Overflow Damage . | . . . . Projectiles . | . . . . Explosions . | . . . . Melee . | . . . . Knockbacks . | . . . . Impact . | . . . . Kinetic . | . . . . Secondary . | . . . . Self-Inflicted Damage . | . . . . Shots . | . . . . Rammed . | . . . . Targets Rammed . | . . . . Kicked . | . . . . Crushed . | . . . . Highest Temperature 144 | . 144 36 . Average Temperature 54 | . 58 18 . Received Heat Transfer 78 | . 36 15 27 Siege Activations . | . . . . Robots Corrupted 1 | . 1 . . Combat Hostiles 1 | . 1 . . Parts Fried 3 | . 3 . . Impact Corruptions . | . . . . Robots Melted . | . . . . Combat Hostiles . | . . . . Parts Melted . | . . . . Heat Transferred 50 | . 50 . . Parts Sabotaged . | . . . . Parts Stolen . | . . . . Parts Stripped . | . . . . Power Chain Reactions 2 | . 2 . . Alert | -11 -10 -10 -10 ------- Run | Yrd Mat Min Sub Peak Influence 271 | 25 271 114 . Initial 27 | . 16 27 . Average 48 | 12 120 31 . Maximum Alert Level 1 | . 1 . . Low Security (%) 94 | 100 73 100 . Level 1 5 | . 26 . . Level 2 . | . . . . Level 3 . | . . . . Level 4 . | . . . . Level 5 . | . . . . High Security . | . . . . Max Security . | . . . . Squads Dispatched 3 | . 2 1 . Investigation 1 | . . 1 . Extermination . | . . . . Reinforcement 2 | . 2 . . Assault . | . . . . Garrison . | . . . . Intercept . | . . . . Searches Triggered . | . . . . Construction Impeded . | . . . . Haulers Reinforced . | . . . . Active Scanning Responses . | . . . . Cargo Convoy Interrupts . | . . . . Stealth | -11 -10 -10 -10 --------- Run | Yrd Mat Min Sub Distress Signals 2 | . 2 . . Communications Jammed . | . . . . Distress Signals . | . . . . Times Spotted 25 | . 14 8 3 Peak Tracking Total 5 | . 5 3 3 Tactical Retreats 1 | . 1 . . Traps | -11 -10 -10 -10 ------- Run | Yrd Mat Min Sub Traps Triggered . | . . . . Indirectly . | . . . . Trap Hack Attempts . | . . . . Triggered . | . . . . Disarmed . | . . . . Reprogrammed . | . . . . Reused . | . . . . Traps Extracted . | . . . . Installed . | . . . . Triggered . | . . . . Machines | -11 -10 -10 -10 ---------- Run | Yrd Mat Min Sub Machines Disabled 1 | . 1 . . Max in Single Turn 1 | . 1 . . Machines Repaired . | . . . . Machines Dismantled . | . . . . Machines Sabotaged . | . . . . Overloaded Fab Kills . | . . . . Hacking | -11 -10 -10 -10 --------- Run | Yrd Mat Min Sub Machines Accessed 2 | . 1 1 . Terminals . | . . . . Fabricators . | . . . . Repair Stations 1 | . 1 . . Recycling Units . | . . . . Scanalyzers . | . . . . Garrison Access . | . . . . Total Hacks 4 | . 3 1 . Successful 1 | . . 1 . Failed 3 | . 3 . . Catastrophic 1 | . 1 . . Database Lockouts . | . . . . Manual . | . . . . Terminals . | . . . . Fabricators . | . . . . Repair Stations 3 | . 3 . . Recycling Units . | . . . . Scanalyzers . | . . . . Garrison Access . | . . . . Terminal Hacks 1 | . . 1 . Open Door 1 | . . 1 . Fabricator Hacks . | . . . . Repair Station Hacks . | . . . . Recycling Unit Hacks . | . . . . Scanalyzer . | . . . . Garrison Access Hacks . | . . . . Unauthorized Hacks . | . . . . Terminals . | . . . . Fabricators . | . . . . Repair Stations . | . . . . Recycling Units . | . . . . Scanalyzers . | . . . . Garrison Access . | . . . . Data Cores Recovered . | . . . . Used . | . . . . Hacking Detections 1 | . 1 . . Full Trace Events . | . . . . Feedback Events . | . . . . Feedback Blocked . | . . . . Robot Schematics Acquired . | . . . . Robots Built . | . . . . Authchips . | . . . . Time . | . . . . Total Robot Build Rating . | . . . . Part Schematics Acquired . | . . . . Parts Built . | . . . . Authchips . | . . . . Time . | . . . . Total Part Build Rating . | . . . . Parts Repaired . | . . . . Time . | . . . . Parts Recycled . | . . . . Recycled Matter . | . . . . Retrieved Matter . | . . . . Retrieved Components . | . . . . Parts Scanalyzed . | . . . . Part Schematics Acquired . | . . . . Parts Damaged . | . . . . Bothacking | -11 -10 -10 -10 ------------ Run | Yrd Mat Min Sub Used RIF Installer . | . . . . Robots Hacked . | . . . . Non-combat . | . . . . Combat . | . . . . Robot Hacks Applied . | . . . . Relay Couplers Released . | . . . . Fabnet Peak Effective % . | . . . . Robots Rewired . | . . . . Allies Hacked . | . . . . Hacks Repelled . | . . . . Allies | -11 -10 -10 -10 -------- Run | Yrd Mat Min Sub Total Allies 3 | . . 3 . Largest Group 3 | . . 3 2 Highest-Rated Group 40 | . . 40 24 Highest-Rated Ally 16 | . . 16 16 Total Orders . | . . . . Ally Attacks 32 | . . 18 14 Total Damage 233 | . . 161 72 Kills 7 | . . 5 2 Allies Corrupted . | . . . . Allies Melted . | . . . . Intel | -11 -10 -10 -10 ------- Run | Yrd Mat Min Sub Robot Analysis Total . | . . . . Derelict Logs Recovered 2 | . . 2 . Drone Launches . | . . . . Drone Recoveries . | . . . . Exploration | -11 -10 -10 -10 ------------- Run | Yrd Mat Min Sub Turns Passed 3035 | 134 589 2113 199 Spaces Moved 1222 | 71 263 832 56 Core 5 | 5 . . . Treads 1061 | . 173 832 56 Legs 156 | 66 90 . . Wheels . | . . . . Hover . | . . . . Flight . | . . . . Fastest Speed 50 | 50 120 240 240 Average Speed 219 | 115 177 240 240 Slowest Speed 240 | 120 240 240 240 Overloaded Moves . | . . . . Propulsion Burnouts . | . . . . Robots Hopped . | . . . . Cave-ins Triggered . | . . . . Exploration Rate (%) 38 | 5 40 101 6 Regions Visited 3 Branch Regions 2 Pre-discovered Areas 1 | . . 1 . Known Exits Taken . | . . . . Unknown Exits Taken 3 | 1 1 1 . Scrap Searched 1 | . . 1 . Spaces Dug . | . . . . Terrain Destroyed 4 | . 4 . . Melee . | . . . . Projectile . | . . . . AOE 4 | . 4 . . Terrain Rammed . | . . . . Walls Destroyed . | . . . . Machines Disabled . | . . . . Actions | -11 -10 -10 -10 --------- Run | Yrd Mat Min Sub Total 1450 | 100 324 943 83 Wait 106 | . 11 95 . Move 1219 | 70 262 831 56 Hop . | . . . . Pick Up 28 | 10 6 11 1 Fast Attach 7 | 7 . . . Attach 3 | . . 1 2 Detach 1 | . 1 . . Swap 7 | . 6 1 . Drop 11 | 2 6 1 2 Fire 68 | 11 32 3 22 Melee . | . . . . Ram . | . . . . Kick . | . . . . Crush . | . . . . Escape Stasis . | . . . . Rewire . | . . . . Trap . | . . . . Miscellaneous . | . . . . Route ------- -11/Scrapyard -10/Materials (discovered 2 exits: [*Mat] / *Min) -10/Mines (discovered 3 exits: [*Mat x2] / [*Sub]) -10/Subcaves History --------- Turn | Location | Event 5 | -11/Scrapyard | Discovered new exit (range 15) 135 | -11/Scrapyard | Entered Materials 318 | -10/Materials | Build established: Mutant 566 | -10/Materials | Discovered new exit (range 5) 607 | -10/Materials | Discovered new exit (range 16) 724 | -10/Materials | Entered Mines 731 | -10/Mines | Received a Rocket Launcher from a helpful Derelict 830 | -10/Mines | Learned location of Storage (-9) 872 | -10/Mines | Learned 4 Materials zone layouts 1118 | -10/Mines | Discovered new exit (range 9) 1142 | -10/Mines | Assisted by bots powering up and referring to "LRC-V3" 1218 | -10/Mines | Learned Materials terminal intel 1503 | -10/Mines | Found a damaged Exp. Sensor Array with a note attached 1508 | -10/Mines | Found Prototype Device 1509 | -10/Mines | Identified Exp. Sensor Array 2413 | -10/Mines | Discovered new exit (range 8) 2435 | -10/Mines | Met a Derelict shopkeep closing up shop 2822 | -10/Mines | Discovered new exit (range 6) 2837 | -10/Mines | Entered Subcaves 2837 | -10/Subcaves | Accompanied by 2 allies 2957 | -10/Subcaves | A Subdweller sparked back to life 2957 | -10/Subcaves | A Subdweller sparked back to life 2957 | -10/Subcaves | A Subdweller sparked back to life 2971 | -10/Subcaves | Found Prototype Leg 2987 | -10/Subcaves | Core integrity fell below 50% 3007 | -10/Subcaves | Core integrity fell below 20% 3027 | -10/Subcaves | Lost 3 parts (1n2w) 3036 | -10/Subcaves | Destroyed by 1D-YW4(R) with Subdweller Machine Gun Last Messages --------------- 02957_ ZN-EA3(R) creaks and sparks as it begins to move. 02958_ Mercenary 1a destroyed. 02960_ ZN-EA3(R) destroyed. 02962_ FP-X5L(O) collects matter. 02964_ EM Pulse Gun destroyed. 02967_ Dropped Lgt. Ion Engine. 02968_ Subatomizers dissect the Sml. Laser. 02968_ FP-X5L(O) collects matter. 02968_ 8L-Z6R(R) destroyed. 02968_ Dropped Wheel. 02971_ Acquired Prototype Leg. 02971_ FP-X5L(O) collects matter. 02982_ Trooper 1a destroyed. 02983_ FP-X5L(O) collects matter. 02984_ Lgt. Treads destroyed. 02994_ Subatomizers dissect the Sml. Laser. 02996_ EM Pulse Gun destroyed. 03006_ Subatomizers dissect the Sml. Laser. 03028_ Lgt. Ion Engine destroyed. 03030_ Subatomizers dissect the Sml. Laser. Map ----- +----------------------------------------------------+ | ?????????????????????????????# #????? | | ?????????????????????????????# ##????? | | ?????????????????????????????# ##?????? | | ?????????????????????????????# %% % #??????? | | ?????????????????????????????# ##??????? | | ?????????????????????????????##% ####????? | | ?????????????????????????????## % ## #????? | | ?????????????????????????????# ## %##???? | | ?????????????????????????????##% ##### #???? | | ??????????????????????????????## % ##???# #???? | | ???????????????????????????????#### %##### #???? | | ??????????????????????????????????##% #???? | | ???????????????????????????????????# #???? | | ?????????????????????????????????### #???? | | ????????????????????????????????## #???? | | ????????????????????????????????# #???? | | ????????????????????????????????# ### ##???? | | ???????????????????????????????## ##?# %##????? | | ???????????????????????????????# ### ###?????? | | ???????????????????????????????## ## #???????? | | ???????????????????????????????# ## ##??????? | | ??????????? ?#???#???####?????## ## #??????? | | ??????????? ## ### ###### ##??????? | | ?????????? < ##???????? | | ?????????????? ! R # ##????????? | | ?????????????????????# @ ### #?????????? | | ?????????????????????# =<=&[#?# #####?????????? | | ?????????????????????# !&*< &#?####?????????????? | | ?????????????????????#### <]#??????????????????? | | ????????????????????????#####<#??????????????????? | | ?????????????????????????????????????????????????? | | ?????????????????????????????????????????????????? | | ?????????????????????????????????????????????????? | | ?????????????????????????????????????????????????? | | ?????????????????????????????????????????????????? | | ?????????????????????????????????????????????????? | | ?????????????????????????????????????????????????? | | ?????????????????????????????????????????????????? | | ?????????????????????????????????????????????????? | | ?????????????????????????????????????????????????? | | ?????????????????????????????????????????????????? | | ?????????????????????????????????????????????????? | | ?????????????????????????????????????????????????? | | ?????????????????????????????????????????????????? | | | | | | | | | | | | | +----------------------------------------------------+ Best States ------------- Heat Dissipation 25 Energy Generation 10 Energy Capacity 125 Matter Stores 300 Matter Capacity 300 Sight Range 16 Robot Scan Range 20 Terrain Scan Density 10 Evasion (%) 55 Recoil Reduction 2 Item Schematics ----------------- None Robot Schematics ------------------ None Fabricated ------------ Nothing Alien Tech Used ----------------- None Achievements -------------- None Challenges ------------ None Game ------ Seed WeaponThiefShielding Manual? 0 Play Time 00:18:03 Cumulative 87.9 hours Start 2024.10.27 @ 10:59:39 End 2024.10.27 @ 11:17:21 Sessions 1 Manual Loads 0 Difficulty Rogue Special Mode None Game No. 147 Rogue 119 Adventurer 28 Explorer 0 Win Type - Total 0 Types 0/0/0/0/0/0/0/0/0 Lore% 31 Gallery% 31 Achievement% 32 Wizard Run 0 Options --------- Layout 0 ASCII 0 Keyboard 1 Movement Numpad Keybinds 0 Fullscreen 2 Font 36/Smallcaps Map View 76x50 Zoom Use 0% Tactical HUD 1 Map Filters NONE Filters NONE Steam 1 RUN: ec5c71c2-a39e-4a44-85c5-624629ddf425